fUST/lending_fUST_20250824
["ID","MTS","AMOUNT","RATE_DAILY","PERIOD"]
[381080416,1756009838501,-1000.0,0.00035616,15]
[381080417,1756009838511,-1446.03920455,0.00035728,2]
[381080418,1756009838520,-155.78192788,0.00036,30]
[381080419,1756009838529,-156.0,0.00036,120]
[381080420,1756009838538,-161.19559496,0.00036213,30]
[381080421,1756009838547,-3126.60077646,0.00036272,2]
[381080422,1756009838557,-1000.0,0.00036986,15]
[381080423,1756009838566,-14405.96,0.00037,14]
[381080424,1756009838575,-730.77898409,0.000374,14]
[381080425,1756009838587,-216.09101591,0.000374,14]
[381080426,1756009838597,-2013.28644569,0.00038,30]
[381080427,1756009838606,-446.52029902,0.00038,120]
[381080428,1756009838615,-179.71246006,0.0003818,19]
[381080429,1756009838625,-1000.0,0.00038356,15]
[381080430,1756009838634,-156.0,0.000386,120]
[381080431,1756009838645,-194.58,0.000388,120]
[381080432,1756009838655,-161.19,0.000388,120]
[381080433,1756009838664,-500.0,0.00038873,5]
[381080434,1756009838673,-501.00323893,0.00038873,5]
[381080435,1756009838683,-500.0,0.00038873,5]
[381080436,1756009838692,-501.04144634,0.00038873,5]
[381080437,1756009838702,-217.31458261,0.00038873,5]
[381080438,1756009838711,-503.53147026,0.00038873,5]
[381080439,1756009838720,-500.0,0.00038873,5]
[381080440,1756009838729,-500.0,0.00038873,5]
[381080441,1756009838739,-500.0,0.00038873,5]
[381080442,1756009838748,-500.0,0.00038873,5]
[381080443,1756009838757,-505.85925925,0.00038873,5]
[381080444,1756009838767,-508.93312684,0.00038873,5]
[381080445,1756009838776,-500.0,0.00038873,5]
[381080446,1756009838785,-501.47097522,0.00038873,5]
[381080447,1756009838794,-501.71104737,0.00038873,5]
[381080448,1756009838804,-517.69728802,0.00038873,5]
[381080449,1756009838813,-500.0,0.00038873,5]
[381080450,1756009838822,-500.0,0.00038873,5]
[381080451,1756009838832,-500.0,0.00038873,5]
[381080452,1756009838841,-500.0,0.00038873,5]
[381080453,1756009838850,-22896.78425174,0.000389,60]
[381080454,1756009838862,-19276.24,0.000389,60]
[381080459,1756009839763,-65809.91463138,0.000389,60]
[381080460,1756009839836,-201576.66122087,0.000389,60]
[381080461,1756009839845,-6836.539978,0.000389,2]
[381080462,1756009839854,-4092.06612484,0.00039,120]
[381080463,1756009839864,-1000.0,0.00039421,5]
[381080464,1756009839873,-1000.0,0.00039421,5]
[381080465,1756009839882,-1000.0,0.00039421,5]
[381080466,1756009839893,-730.43683106,0.00039421,5]
[381080467,1756009839902,-1000.0,0.00039421,5]
[381080468,1756009839912,-500.62894446,0.00039421,5]
[381080469,1756009839921,-916.96542323,0.00039421,5]
[381080470,1756009839931,-501.38862574,0.00039421,5]
[381080471,1756009839941,-427.24665281,0.00039421,5]
[381080472,1756009839950,-502.07133959,0.00039421,5]
[381080473,1756009839959,-581.89404326,0.000397,10]
[381080474,1756009839968,-1000.0,0.00039726,15]
[381080475,1756009839978,-3126.60077646,0.00039737,2]
[381080476,1756009839987,-500.0,0.00039773,5]
[381080477,1756009839996,-1000.61193483,0.00039773,5]
[381080478,1756009840006,-150.0,0.00039773,5]
[381080479,1756009840015,-150.0,0.00039773,5]
[381080480,1756009840025,-844.67759735,0.0003978,3]
[381080481,1756009840034,-36023.397789,0.0003978,3]
[381080482,1756009840046,-14230.2850285,0.0003978,3]
[381080483,1756009840055,-232.42214577,0.0003978,3]
[381080484,1756009840065,-160.0,0.0003978,3]
[381080485,1756009840074,-350.12622772,0.0003978,3]
[381080486,1756009840083,-1120.8,0.00039789,120]
[381080487,1756009840093,-151.0,0.0003979,14]
[381080488,1756009840103,-152.155785,0.0003979,14]
[381080489,1756009840112,-151.0,0.0003979,14]
[381080490,1756009840122,-151.0,0.0003979,14]
[381080491,1756009840132,-151.0,0.0003979,14]
[381080492,1756009840141,-151.0,0.0003979,14]
[381080493,1756009840151,-151.0,0.0003979,14]
[381080494,1756009840160,-151.0,0.0003979,14]
[381080495,1756009840169,-151.0,0.0003979,14]
[381080496,1756009840184,-151.0,0.0003979,14]
[381080497,1756009840194,-151.0,0.0003979,14]
[381080498,1756009840203,-151.0,0.0003979,14]
[381080499,1756009840212,-264.517546,0.0003979,14]
[381080500,1756009840222,-151.0,0.0003979,14]
[381080501,1756009840231,-247.87172,0.0003979,14]
[381080502,1756009840240,-247.87172,0.0003979,14]
[381080503,1756009840250,-151.0,0.0003979,14]
[381080504,1756009840259,-247.87172,0.0003979,14]
[381080505,1756009840269,-247.87172,0.0003979,14]
[381080506,1756009840278,-151.0,0.0003979,14]
[381080507,1756009840287,-159.459233,0.0003979,14]
[381080508,1756009840297,-151.0,0.0003979,14]
[381080509,1756009840306,-151.0,0.0003979,14]
[381080510,1756009840315,-151.0,0.0003979,14]
[381080511,1756009840324,-151.0,0.0003979,14]
[381080512,1756009840333,-170.299516,0.0003979,14]
[381080513,1756009840343,-151.0,0.0003979,14]
[381080514,1756009840352,-170.299516,0.0003979,14]
[381080515,1756009840361,-170.299516,0.0003979,14]
[381080516,1756009840370,-151.0,0.0003979,14]
[381080517,1756009840380,-203.610113,0.0003979,14]
[381080518,1756009840389,-170.299516,0.0003979,14]
[381080519,1756009840398,-151.0,0.0003979,14]
[381080520,1756009840408,-203.610113,0.0003979,14]
[381080521,1756009840416,-151.0,0.0003979,14]
[381080522,1756009840426,-203.610113,0.0003979,14]
[381080523,1756009840435,-151.0,0.0003979,14]
[381080524,1756009840445,-151.0,0.0003979,14]
[381080525,1756009840454,-203.610113,0.0003979,14]
[381080526,1756009840463,-262402.69653049,0.0003979,2]
[381080528,1756009842660,-900.94926342,0.0003979,2]
[381080582,1756009845993,-199.0,0.000389,120]
[381080583,1756009846003,-382.18994283,0.0003979,2]
[381080584,1756009846018,-857.62308217,0.0003979,2]
[381080587,1756010116176,-219.00377776,0.0002249,2]
[381080589,1756010279784,321.20554064,0.00020763,2]
[381080590,1756010280502,-230.6838459,0.0002249,2]
[381080591,1756010284324,-50.3710024,0.0002249,2]
[381080592,1756010309683,-206.07338536,0.000225,2]
[381080593,1756010313349,-281.39283753,0.000225,2]
[381080594,1756010376600,-172.62340555,0.000225,2]
[381080595,1756010378646,-152.12466072,0.000225,2]
[381080596,1756010380368,-277.02168386,0.000225,2]
[381080598,1756010429611,-200.0,0.000225,2]
[381080599,1756010431691,-327.12356952,0.000225,2]
[381080600,1756010435960,-145.95475898,0.000225,2]
[381080602,1756010537434,164.6288184,0.00013699,2]
[381080603,1756010610050,-203.62435608,0.0002249,2]
[381080604,1756010610075,-16.37564392,0.0002249,2]
[381080605,1756010613376,-165.06955657,0.0002249,2]
[381080606,1756010614959,-174.89742266,0.0002249,2]
[381080607,1756010788222,-178.28741189,0.0002249,2]
[381080608,1756010793239,-30.07147219,0.0002249,2]
[381080609,1756010793266,-364.62804718,0.0002249,2]
[381080610,1756010838096,-208.35888408,0.00024216,2]
[381080611,1756010838117,-199.0,0.00026749,20]
[381080612,1756010838136,-31.52953926,0.00029454,30]
[381080613,1756010852764,-300.0,0.000225,2]
[381080615,1756010855416,-7.38391779,0.000225,2]
[381080617,1756010889855,302.45563732,0.00023004,10]
[381080618,1756010953228,-255.49283464,0.0002249,2]
[381080619,1756010954086,-261.98758795,0.0002249,2]
[381080620,1756010955350,-162.79819058,0.0002249,2]
[381080621,1756010959850,-22.32668218,0.0002249,2]
[381080631,1756011031917,-209.82302986,0.00024116,2]
[381080633,1756011031926,-255.49283464,0.00024216,2]
[381080635,1756011031935,-199.0,0.00026749,20]
[381080636,1756011031944,-540.60783231,0.00029454,30]
[381080638,1756011031955,-1429.06262843,0.00029454,30]
[381080640,1756011031965,-265.048983,0.00029459,10]
[381080642,1756011031975,-152.0,0.00031,120]
[381080644,1756011031984,-1000.0,0.00031433,2]
[381080646,1756011031993,-1000.0,0.00031433,2]
[381080648,1756011032003,-1000.0,0.00031433,2]
[381080651,1756011032012,-1000.0,0.00031433,2]
[381080654,1756011032021,-1000.0,0.00031433,2]
[381080657,1756011032030,-1000.0,0.00031433,2]
[381080659,1756011032039,-1000.0,0.00031433,2]
[381080661,1756011032048,-1000.0,0.00031433,2]
[381080663,1756011032057,-1000.0,0.00031433,2]
[381080666,1756011032066,-1200.0,0.0003145,3]
[381080668,1756011032076,-1200.0,0.00031451,3]
[381080670,1756011032085,-400.0,0.00031451,2]
[381080674,1756011032095,-301.0,0.00031451,3]
[381080677,1756011032105,-302.0,0.00031451,3]
[381080679,1756011032114,-1647.51517858,0.00031452,2]
[381080683,1756011032123,-5000.0,0.00031454,4]
[381080686,1756011032132,-168.0,0.00032354,2]
[381080689,1756011032141,-168.0,0.00032715,2]
[381080692,1756011032150,-168.0,0.00033216,2]
[381080695,1756011032160,-152.0,0.000335,120]
[381080698,1756011032169,-168.0,0.00033573,2]
[381080701,1756011032179,-168.0,0.00033592,2]
[381080704,1756011032188,-168.0,0.0003381,2]
[381080707,1756011032197,-168.0,0.00033839,2]
[381080710,1756011032207,-560.0,0.00033847,2]
[381080713,1756011032216,-168.0,0.00034048,2]
[381080715,1756011032225,-168.0,0.00034073,2]
[381080717,1756011032234,-168.0,0.00034084,2]
[381080719,1756011032243,-168.0,0.00034272,2]
[381080721,1756011032253,-168.0,0.00034274,2]
[381080723,1756011032262,-168.0,0.00034291,2]
[381080725,1756011032271,-168.0,0.0003449,2]
[381080727,1756011032280,-168.0,0.00034646,2]
[381080729,1756011032289,-1054.70615657,0.0003472,5]
[381080731,1756011032298,-168.0,0.0003497,2]
[381080733,1756011032307,-168.0,0.00035165,2]
[381080735,1756011032317,-152.0,0.00036,120]
[381080737,1756011032326,-977.944,0.00036345,2]
[381080739,1756011032335,-2165.389,0.00036345,2]
[381080741,1756011032344,-642.583,0.00036345,2]
[381080743,1756011032354,-412.042,0.00036345,2]
[381080745,1756011032363,-150.126,0.00036345,2]
[381080747,1756011032372,-783.0,0.00036424,2]
[381080749,1756011032382,-2133.3598724,0.00037263,4]
[381080751,1756011032391,-179.74835231,0.0003818,19]
[381080753,1756011032400,-152.0,0.000386,120]
[381080755,1756011032410,-940.05310078,0.00039,2]
[381080757,1756011032422,-59.94689922,0.00039,2]
[381080759,1756011032432,-164.1197885,0.00039178,30]
[381080761,1756011032441,-593.313861,0.00039178,30]
[381080763,1756011032451,-849.0,0.00039199,5]
[381080765,1756011032460,-2404.6089484,0.000395,2]
[381080767,1756011032469,-907.5855313,0.00039528,2]
[381080769,1756011032479,-3630.34212521,0.00039528,2]
[381080771,1756011032488,-289.49733825,0.00039528,2]
[381080773,1756011032497,-1156.83136364,0.00039528,2]
[381080775,1756011032507,-179.56425379,0.000396,2]
[381080777,1756011032523,-1889.65523743,0.000396,10]
[381080779,1756011032533,-176.11663669,0.00039673,5]
[381080781,1756011032542,-500.0,0.00039673,5]
[381080783,1756011032551,-130.99778114,0.00039675,2]
[381081300,1756011037870,-199.0,0.00026749,20]
[381081301,1756011037879,-1000.0,0.00031433,2]
[381081302,1756011037888,-1000.0,0.00031433,2]
[381081303,1756011037898,-1000.0,0.00031433,2]
[381081304,1756011037907,-1000.0,0.00031433,2]
[381081305,1756011037916,-48.56647264,0.00039675,2]
[381081306,1756011037925,-289.26581377,0.00039679,15]
[381081307,1756011037935,-198.0,0.0003968,3]
[381081308,1756011037945,-151.0,0.0003968,3]
[381081309,1756011037954,-500.0,0.0003968,3]
[381081310,1756011037963,-151.0,0.0003968,3]
[381081311,1756011037972,-152.43,0.0003968,3]
[381081313,1756011037981,-212.09,0.0003968,3]
[381081314,1756011037990,-636.32,0.0003968,3]
[381081315,1756011037999,-844.67759735,0.0003968,3]
[381081316,1756011038009,-24402.2127354,0.0003968,3]
[381081317,1756011038018,-7616.17266564,0.0003968,3]
[381081318,1756011038027,-232.42214577,0.0003968,3]
[381081319,1756011038036,-160.0,0.0003968,3]
[381081320,1756011038046,-1476.89,0.00039689,120]
[381081321,1756011038055,-235.16396663,0.00039689,15]
[381081322,1756011038064,-151.0,0.00039689,120]
[381081323,1756011038073,-14374.20651042,0.0003969,2]
[381081324,1756011038084,-355625.79348958,0.0003969,2]
[381081325,1756011038094,-180.0,0.000397,2]
[381081326,1756011038103,-179.56425378,0.0003975,2]
[381081327,1756011038112,-500.0,0.00039764,2]
[381081328,1756011038121,-151.0,0.00039764,2]
[381081329,1756011038130,-198.0,0.00039764,2]
[381081330,1756011038139,-210.90349589,0.00039764,2]
[381081331,1756011038148,-151.0,0.00039764,2]
[381081332,1756011038157,-151.0,0.00039764,2]
[381081333,1756011038167,-151.0,0.00039764,2]
[381081334,1756011038176,-500.0,0.00039764,2]
[381081335,1756011038186,-151.0,0.00039764,2]
[381081336,1756011038195,-151.0,0.00039764,2]
[381081337,1756011038204,-151.0,0.00039764,2]
[381081338,1756011038214,-151.0,0.00039764,2]
[381081339,1756011038223,-151.0,0.00039764,2]
[381081340,1756011038232,-500.0,0.00039773,5]
[381081341,1756011038241,-500.0,0.00039773,5]
[381081342,1756011038251,-500.0,0.00039773,2]
[381081343,1756011038260,-3486.03039077,0.00039779,3]
[381081344,1756011038269,-1088.02466652,0.00039779,3]
[381081345,1756011038279,-151.0,0.00039789,14]
[381081346,1756011038288,-291.24052599,0.00039789,14]
[381081347,1756011038297,-21396.85944216,0.00039789,14]
[381081348,1756011038306,-1801.02552318,0.00039789,14]
[381081349,1756011038315,-201.93286099,0.00039789,14]
[381081350,1756011038325,-209.40437684,0.00039789,14]
[381081351,1756011038333,-300.0,0.00039789,14]
[381081352,1756011038342,-217.15233878,0.00039789,14]
[381081353,1756011038351,-300.0,0.00039789,14]
[381081354,1756011038360,-225.18697532,0.00039789,14]
[381081355,1756011038369,-151.0,0.00039789,14]
[381081356,1756011038378,-151.0,0.00039789,14]
[381081357,1756011038388,-300.0,0.00039789,14]
[381081358,1756011038397,-198.59376783,0.00039789,14]
[381081359,1756011038406,-151.0,0.00039789,14]
[381081360,1756011038416,-300.0,0.00039789,14]
[381081361,1756011038425,-151.0,0.00039789,14]
[381081362,1756011038434,-151.0,0.00039789,14]
[381081363,1756011038443,-300.0,0.00039789,14]
[381081364,1756011038453,-151.0,0.00039789,14]
[381081365,1756011038462,-2524.82941417,0.00039789,14]
[381081366,1756011038471,-151.0,0.00039789,14]
[381081367,1756011038480,-151.0,0.00039789,14]
[381081368,1756011038489,-300.0,0.00039789,14]
[381081369,1756011038498,-2618.2481025,0.00039789,14]
[381081370,1756011038507,-151.0,0.00039789,14]
[381081371,1756011038520,-300.0,0.00039789,14]
[381081372,1756011038529,-500.0,0.00039789,14]
[381081373,1756011038538,-151.0,0.00039789,14]
[381081374,1756011038547,-2715.12328229,0.00039789,14]
[381081375,1756011038558,-151.0,0.00039789,14]
[381081376,1756011038567,-300.0,0.00039789,14]
[381081377,1756011038576,-151.0,0.00039789,14]
[381081378,1756011038585,-151.0,0.00039789,14]
[381081379,1756011038594,-2815.58284374,0.00039789,14]
[381081380,1756011038604,-165.0,0.00039789,14]
[381081381,1756011038613,-151.0,0.00039789,14]
[381081382,1756011038622,-151.0,0.00039789,14]
[381081383,1756011038631,-2919.75940895,0.00039789,14]
[381081384,1756011038640,-151.0,0.00039789,14]
[381081385,1756011038649,-151.0,0.00039789,14]
[381081386,1756011038659,-1550.34984277,0.00039789,14]
[381081387,1756011038668,-151.0,0.00039789,14]
[381081388,1756011038677,-151.0,0.00039789,14]
[381081389,1756011038687,-300.0,0.00039789,14]
[381081390,1756011038696,-151.0,0.00039789,14]
[381081392,1756011038705,-151.0,0.00039789,14]
[381081394,1756011038714,-151.0,0.00039789,14]
[381081395,1756011038723,-300.0,0.00039789,14]
[381081396,1756011038732,-300.0,0.00039789,14]
[381081398,1756011038741,-151.0,0.00039789,14]
[381081400,1756011038750,-151.0,0.00039789,14]
[381081402,1756011038760,-323.21924273,0.00039789,14]
[381081404,1756011038769,-250.0,0.00039789,14]
[381081406,1756011038779,-3486.03039077,0.0003979,3]
[381081408,1756011038788,-1088.02466652,0.0003979,3]
[381081410,1756011038797,-14405.96,0.000398,14]
[381081412,1756011038807,-179.56425378,0.00039825,2]
[381081414,1756011038816,-401.39721443,0.00039877,120]
[381081416,1756011038826,-3486.03039077,0.0003989,3]
[381081418,1756011038836,-1088.02466652,0.0003989,3]
[381081420,1756011038846,-1000.0,0.0003989,2]
[381081421,1756011038856,-1000.0,0.0003989,2]
[381081423,1756011038866,-1000.0,0.0003989,2]
[381081425,1756011038876,-256.59848899,0.0003989,2]
[381081427,1756011038886,-1000.0,0.00039898,15]
[381081429,1756011038895,-199.0,0.000399,30]
[381081431,1756011038905,-40453.54217992,0.000399,30]
[381081433,1756011038917,-179.56425378,0.000399,2]
[381081435,1756011038927,-844.67759735,0.000399,30]
[381081437,1756011038937,-232.42214577,0.000399,30]
[381081439,1756011038946,-6608.59093476,0.000399,120]
[381081441,1756011038956,-194.59,0.000399,120]
[381081443,1756011038966,-161.19839244,0.000399,120]
[381081445,1756011038975,-161.19,0.000399,120]
[381081447,1756011038984,-647.66914228,0.00039947,8]
[381081449,1756011038993,-151.0,0.00039954,3]
[381081451,1756011039004,-500.0,0.00039954,3]
[381081453,1756011039013,-151.0,0.00039954,3]
[381081455,1756011039023,-502.13867085,0.00039973,2]
[381081457,1756011039032,-162.0534906,0.00039973,5]
[381081459,1756011039041,-500.0,0.00039973,5]
[381081461,1756011039051,-500.0,0.00039973,5]
[381081463,1756011039060,-320.87374149,0.00039973,5]
[381081465,1756011039070,-500.0,0.00039973,5]
[381081467,1756011039079,-500.0,0.00039973,5]
[381081469,1756011039089,-500.0,0.00039973,5]
[381081471,1756011039099,-500.0,0.00039973,5]
[381081473,1756011039108,-500.0,0.00039973,5]
[381081475,1756011039118,-500.0,0.00039973,5]
[381081477,1756011039127,-512.13917913,0.00039973,5]
[381081479,1756011039136,-161.38519004,0.00039973,5]
[381081481,1756011039145,-500.0,0.00039973,5]
[381081483,1756011039155,-500.0,0.00039973,5]
[381081485,1756011039164,-500.0,0.00039973,5]
[381081487,1756011039174,-1500.0,0.0003999,2]
[381081489,1756011039183,-844.67759735,0.0003999,3]
[381081491,1756011039192,-34860.3039077,0.0003999,3]
[381081493,1756011039202,-10880.2466652,0.0003999,3]
[381081495,1756011039211,-202.20021287,0.00039999,30]
[381081497,1756011039220,-160.0,0.00039999,30]
[381081499,1756011039230,-151.0,0.00039999,30]
[381081501,1756011039239,-151.0,0.00039999,30]
[381081503,1756011039248,-500.0,0.00039999,30]
[381081505,1756011039257,-151.0,0.00039999,30]
[381081507,1756011039267,-250.61433319,0.00039999,30]
[381081508,1756011039275,-500.0,0.00039999,30]
[381081510,1756011039284,-500.0,0.00039999,30]
[381081511,1756011039294,-151.0,0.00039999,30]
[381081512,1756011039303,-260.4067663,0.0004,120]
[381081513,1756011039313,-150.0,0.0004,120]
[381081514,1756011039322,-200.0,0.0004,120]
[381081515,1756011039331,-150.0214196,0.0004,120]
[381081516,1756011039341,-391.7,0.0004,14]
[381081517,1756011039350,-500.0,0.0004,12]
[381081518,1756011039359,-500.0,0.0004,10]
[381081519,1756011039369,-500.0,0.0004,10]
[381081520,1756011039378,-500.0,0.0004,10]
[381081521,1756011039388,-500.0,0.0004,12]
[381081522,1756011039397,-150.0,0.0004,120]
[381081523,1756011039407,-500.0,0.0004,2]
[381081524,1756011039416,-863590.49582108,0.0004,30]
[381081525,1756011040156,-199.0,0.000359,120]
[381081526,1756011040166,-110.34613876,0.0004,30]
[381081530,1756011042967,-14869.84114545,0.0004,30]
[381081531,1756011042979,-536.11930089,0.0004,30]
[381081532,1756011043028,-55575.81766781,0.0004,30]
[381081533,1756011043038,-1763.0,0.0004,14]
[381081534,1756011043048,-1763.0,0.0004,14]
[381081535,1756011043057,-1763.0,0.0004,14]
[381081536,1756011043066,-1763.0,0.0004,14]
[381081537,1756011043076,-1763.0,0.0004,14]
[381081538,1756011043085,-1763.0,0.0004,14]
[381081539,1756011043094,-1763.0,0.0004,14]
[381081540,1756011043103,-1763.0,0.0004,14]
[381081541,1756011043112,-1763.0,0.0004,14]
[381081542,1756011043121,-1763.0,0.0004,14]
[381081543,1756011043130,-1763.0,0.0004,14]
[381081544,1756011043139,-1763.0,0.0004,14]
[381081545,1756011043148,-173.75154657,0.0004,14]
[381081546,1756011043157,-156.79709886,0.0004,14]
[381081547,1756011043166,-236.69,0.0004,7]
[381081548,1756011043175,-161.0,0.0004,14]
[381081549,1756011043185,-161.0,0.0004,14]
[381081550,1756011043194,-161.0,0.0004,14]
[381081551,1756011043203,-169.09788369,0.0004,14]
[381081552,1756011043213,-810.87,0.0004,14]
[381081553,1756011043222,-501.72936358,0.0004,15]
[381081554,1756011043231,-844.67759735,0.0004,120]
[381081555,1756011043240,-160.0,0.0004,120]
[381081556,1756011043250,-232.42214577,0.0004,120]
[381081557,1756011043259,-504.65739987,0.0004,15]
[381081558,1756011043267,-165.5590013,0.0004,30]
[381081559,1756011043276,-500.0,0.00040038,2]
[381081560,1756011043286,-151.0,0.00040038,2]
[381081561,1756011043295,-151.0,0.00040038,2]
[381081562,1756011043304,-151.0,0.00040038,2]
[381081563,1756011043313,-151.0,0.00040038,2]
[381081565,1756011043323,-500.0,0.00040038,2]
[381081567,1756011043332,-151.0,0.00040038,2]
[381081569,1756011043341,-151.0,0.00040038,2]
[381081571,1756011043350,-151.0,0.00040038,2]
[381081573,1756011043360,-151.0,0.00040038,2]
[381081575,1756011043369,-151.0,0.00040038,2]
[381081577,1756011043378,-1000.0,0.00040221,5]
[381081579,1756011043387,-291.58033851,0.00040228,3]
[381081581,1756011043397,-500.0,0.00040228,3]
[381081582,1756011043406,-198.0,0.00040228,3]
[381081584,1756011043415,-265.7819686,0.00040273,30]
[381081586,1756011043424,-213.45675265,0.00040273,30]
[381081588,1756011043433,-500.0,0.00040273,30]
[381081590,1756011043442,-151.0,0.00040273,30]
[381081591,1756011043452,-598.72542831,0.00040273,30]
[381081594,1756011043461,-500.0,0.00040273,30]
[381081595,1756011043471,-198.86680626,0.00040273,30]
[381081597,1756011043480,-271.0,0.00040312,2]
[381081599,1756011043489,-151.0,0.00040312,2]
[381081601,1756011043499,-198.99807432,0.00040312,2]
[381081603,1756011043507,-151.0,0.00040312,2]
[381081605,1756011043520,-151.0,0.00040312,2]
[381081607,1756011043529,-549.56492559,0.00040312,2]
[381081609,1756011043538,-151.0,0.00040312,2]
[381081611,1756011043547,-151.0,0.00040312,2]
[381081613,1756011043557,-151.58718127,0.00040312,2]
[381081615,1756011043566,-757.23327544,0.00040321,5]
[381081617,1756011043575,-505.41813531,0.00040321,5]
[381081619,1756011043584,-576.39852768,0.00040321,2]
[381081621,1756011043595,-1000.0,0.00040521,5]
[381081623,1756011043605,-501.84033229,0.00040521,5]
[381081625,1756011043613,-1000.57638129,0.00040521,5]
[381081627,1756011043623,-206.72367357,0.00040521,5]
[381081629,1756011043631,-463.6721462,0.00040521,5]
[381081631,1756011043640,-1000.0,0.00040521,5]
[381081633,1756011043649,-501.91786643,0.00040521,5]
[381081634,1756011043662,-775.90071939,0.00040521,5]
[381081635,1756011043671,-1000.0,0.00040521,5]
[381081637,1756011043680,-582.18063516,0.00040547,30]
[381081639,1756011043691,-151.0,0.00040547,30]
[381081641,1756011043701,-500.0,0.00040547,30]
[381081643,1756011043710,-1000.0,0.00040583,15]
[381081645,1756011043719,-151.0,0.00040586,2]
[381081646,1756011043727,-151.0,0.00040586,2]
[381081648,1756011043736,-151.0,0.00040586,2]
[381081650,1756011043745,-151.0,0.00040586,2]
[381081652,1756011043755,-1500.0,0.00040768,5]
[381081654,1756011043764,-298.791262,0.00040821,30]
[381081656,1756011043773,-151.0,0.0004086,2]
[381081658,1756011043784,-198.81399783,0.0004086,2]
[381081660,1756011043793,-198.0,0.0004086,2]
[381081662,1756011043802,-424.18,0.0004105,3]
[381081664,1756011043811,-1476.89,0.00041059,120]
[381081666,1756011043820,-1504.61431129,0.00041068,5]
[381081668,1756011043829,-1500.0,0.00041068,5]
[381081669,1756011043838,-339.94,0.00041096,120]
[381081670,1756011043847,-152.0,0.000411,120]
[381081671,1756011043856,-80.48280793,0.00041134,2]
[381081672,1756011043868,-164.51719207,0.00041134,2]
[381081673,1756011043879,-160.0,0.00041159,120]
[381081674,1756011043888,-1000.0,0.00041268,15]
[381081675,1756011043897,-2000.0,0.00041316,10]
[381081676,1756011043906,-2404.60894839,0.00041592,28]
[381081677,1756011043915,-1535.98602722,0.00041616,10]
[381081678,1756011043924,-2500.0,0.00041864,10]
[381081679,1756011043934,-844.67759735,0.000419,10]
[381081680,1756011043943,-907.21025597,0.00041953,15]
[381081687,1756011046026,-529.17068775,0.000399,30]
[381081688,1756011046036,-529.17068775,0.000419,10]
[381081689,1756011046046,-92.78974403,0.00041953,15]
[381081690,1756011046056,-160.0,0.0004205,3]
[381081691,1756011046066,-8194.83906249,0.000422,14]
[381081849,1756011116413,425.67494301,0.00020763,2]
[381081850,1756011283880,267.33427342,0.00020763,2]
[381081851,1756011696380,4249.0,0.00024016,5]
[381081854,1756011948489,1230.91355165,0.000199,2]
[381081855,1756011949403,1230.91355147,0.00021627,2]
[381081856,1756012007125,-287.10337,0.00023353,2]
[381081857,1756012052077,-275.80167852,0.00023353,2]
[381081867,1756012115390,1146.39830183,0.000199,2]
[381081868,1756012115844,1146.39830183,0.00021627,2]
[381082013,1756012235562,-429.06873695,0.00023353,2]
[381082020,1756012235622,-717.32956488,0.00023353,2]
[381082021,1756012235631,-6848.9779697,0.00024016,2]
[381082022,1756012235642,-1200.0,0.00025079,2]
[381082023,1756012235651,-1146.39830183,0.0002508,2]
[381082024,1756012235660,-214.0,0.000253,2]
[381082025,1756012235670,-300.0,0.00026572,2]
[381082026,1756012235679,-300.0,0.00026572,2]